bitfinex/quotes_BTCUSD_20241205
["timestamp","ask_amount","ask_price","bid_price","bid_amount"]
[1733411574058,0.1,103440.0,103410.0,0.24934596]
[1733411574270,0.2,103440.0,103430.0,0.275688]
[1733411574480,0.1,103440.0,103430.0,0.275688]
[1733411574718,0.2,103440.0,103430.0,0.275688]
[1733411576330,0.2,103440.0,103430.0,0.15]
[1733411577455,0.09967605,103440.0,103430.0,0.15]
[1733411577695,0.53882405,103440.0,103430.0,0.15]
[1733411577912,0.56715461,103440.0,103430.0,0.15]
[1733411578128,0.58906711,103440.0,103430.0,0.15]
[1733411578556,0.48906711,103440.0,103430.0,0.15]
[1733411579001,0.58698633,103440.0,103430.0,0.15]
[1733411579214,0.58998633,103440.0,103430.0,0.15]
[1733411579449,0.55865577,103440.0,103430.0,0.15]
[1733411579670,0.56065577,103440.0,103430.0,0.15]
[1733411580116,0.54082405,103440.0,103430.0,0.15]
[1733411580326,0.53882405,103440.0,103430.0,0.15]
[1733411580601,0.54082405,103440.0,103430.0,0.15]
[1733411580827,0.24747605,103440.0,103430.0,0.15]
[1733411581038,0.44382405,103440.0,103430.0,0.15]
[1733411581465,0.54382405,103440.0,103430.0,0.15]
[1733411581677,0.53882405,103440.0,103430.0,0.15]
[1733411582161,0.64182405,103440.0,103430.0,0.15]
[1733411582792,0.64482405,103440.0,103430.0,0.1508679]
[1733411583002,0.64682405,103440.0,103430.0,0.1508679]
[1733411583216,0.76393677,103440.0,103430.0,0.1508679]
[1733411583425,0.74274327,103440.0,103430.0,0.1508679]
[1733411583632,0.46592611,103440.0,103430.0,0.1508679]
[1733411583843,0.25347605,103440.0,103430.0,0.1508679]
[1733411584056,0.44682405,103440.0,103430.0,0.1508679]
[1733411584476,0.54682405,103440.0,103430.0,0.1508679]
[1733411584902,0.44682405,103440.0,103430.0,0.1508679]
[1733411585554,0.25347605,103440.0,103430.0,0.1508679]
[1733411585775,0.031,103440.0,103430.0,0.2765559]
[1733411585983,0.131,103440.0,103430.0,0.1508679]
[1733411586428,0.16110925,103440.0,103430.0,0.1508679]
[1733411586640,0.32202405,103440.0,103430.0,0.1508679]
[1733411586854,0.32402405,103440.0,103430.0,0.1508679]
[1733411587285,0.32202405,103440.0,103430.0,0.1508679]
[1733411587502,0.41602405,103440.0,103430.0,0.1508679]
[1733411587735,0.75900384,103440.0,103430.0,0.1508679]
[1733411587945,0.74104386,103440.0,103430.0,0.1508679]
[1733411588236,0.44572405,103440.0,103430.0,0.1508679]
[1733411588452,0.17537605,103440.0,103430.0,0.1508679]
[1733411588660,0.223,103440.0,103430.0,0.1508679]
[1733411588886,0.223,103440.0,103430.0,0.2765559]
[1733411589101,0.226,103440.0,103430.0,0.1508679]
[1733411589321,0.228,103440.0,103430.0,0.1508679]
[1733411589534,0.12767605,103440.0,103430.0,0.1508679]
[1733411589745,0.22767605,103440.0,103430.0,0.1508679]
[1733411589980,0.12767605,103440.0,103430.0,0.1508679]
[1733411590192,0.32102405,103440.0,103430.0,0.1508679]
[1733411590644,0.31802405,103440.0,103430.0,0.1508679]
[1733411590848,0.2,103430.0,103410.0,0.08928797]
[1733411591056,0.1,103420.0,103400.0,0.48360829]
[1733411591264,0.1,103420.0,103410.0,0.125712]
[1733411591501,0.1,103420.0,103410.0,0.1266789]
[1733411591957,0.1,103420.0,103410.0,0.125712]
[1733411592157,0.1,103420.0,103410.0,0.127712]
[1733411592796,0.1,103420.0,103410.0,0.002]
[1733411593023,0.1,103420.0,103410.0,0.1266799]
[1733411593230,0.1,103420.0,103400.0,0.60932629]
[1733411593439,0.1,103420.0,103410.0,0.002]
[1733411593649,0.29967605,103420.0,103410.0,0.002]
[1733411594549,0.29306205,103420.0,103410.0,0.008]
[1733411594979,0.09967605,103420.0,103410.0,0.008868]
[1733411595195,0.09967605,103420.0,103410.0,0.006868]
[1733411595429,0.29306205,103420.0,103410.0,0.006868]
[1733411595655,0.59136194,103420.0,103410.0,0.000868]
[1733411596048,0.68928116,103420.0,103410.0,0.000868]
[1733411596050,0.66918127,103420.0,103410.0,0.000868]
[1733411596981,0.66918127,103420.0,103400.0,0.15017529]
[1733411596982,0.293404,103410.0,103400.0,0.15017529]
[1733411597190,0.39408005,103410.0,103400.0,0.15017529]
[1733411597819,0.39395295,103410.0,103400.0,0.15017529]
[1733411598472,0.53345331,103410.0,103400.0,0.15017529]
[1733411598882,0.53645331,103410.0,103400.0,0.15017529]
[1733411599604,0.53645331,103410.0,103390.0,0.0008685]
[1733411599605,0.269923,103400.0,103390.0,0.0008685]
[1733411599835,0.36959905,103400.0,103390.0,0.0008685]
[1733411600050,0.49103483,103400.0,103390.0,0.0008685]
[1733411600271,0.46751827,103400.0,103390.0,0.0008685]
[1733411600487,0.36959905,103400.0,103390.0,0.0008685]
[1733411600694,0.46959905,103400.0,103390.0,0.0008685]
[1733411600906,0.42001426,103400.0,103390.0,0.0008685]
[1733411601373,0.42201426,103400.0,103390.0,0.0008685]
[1733411601587,0.52201426,103400.0,103390.0,0.0008685]
[1733411601808,0.59641692,103400.0,103390.0,0.0008685]
[1733411602016,0.49641692,103400.0,103390.0,0.0008685]
[1733411602242,0.51993348,103400.0,103390.0,0.0008685]
[1733411602451,0.61993348,103400.0,103390.0,0.0008685]
[1733411602670,0.62193348,103400.0,103390.0,0.0008685]
[1733411603547,0.49711561,103400.0,103390.0,0.0008685]
[1733411603734,0.29709905,103400.0,103390.0,0.0008685]
[1733411603991,0.39709905,103400.0,103390.0,0.0008685]
[1733411604676,0.49709905,103400.0,103390.0,0.0008685]
[1733411604875,0.49309905,103400.0,103390.0,0.0008685]
[1733411605075,0.64309905,103400.0,103390.0,0.0008685]
[1733411605201,0.54709905,103400.0,103390.0,0.0008685]
[1733411605629,0.44709905,103400.0,103390.0,0.0008685]
[1733411607699,0.25367605,103400.0,103390.0,0.0008685]
[1733411607908,0.254,103400.0,103390.0,0.0008685]
[1733411608117,0.154,103400.0,103390.0,0.0975895]
[1733411608565,0.152,103400.0,103390.0,0.2216895]
[1733411608977,0.15,103400.0,103390.0,0.2216895]
[1733411609404,0.152,103400.0,103390.0,0.32336555]
[1733411609614,0.152,103400.0,103390.0,0.32136555]
[1733411609841,0.152,103400.0,103390.0,0.32336555]
[1733411610053,0.153,103400.0,103390.0,0.32936555]
[1733411610269,0.00017477,103410.0,103390.0,0.58746529]
[1733411610494,0.00017477,103410.0,103400.0,0.08036684]
[1733411610703,0.00017477,103410.0,103400.0,0.07952184]
[1733411610933,0.00017477,103410.0,103400.0,0.17623284]
[1733411611386,0.00017477,103410.0,103400.0,0.18123284]
[1733411611608,0.0017366,103420.0,103410.0,0.0478]
[1733411611816,0.0017366,103420.0,103410.0,0.14861755]
[1733411612031,0.0017366,103420.0,103410.0,0.24531955]
[1733411612240,0.0017366,103420.0,103410.0,0.24435282]
[1733411612882,0.0017366,103420.0,103410.0,0.24935282]
[1733411613331,0.0017366,103420.0,103410.0,0.25835282]
[1733411613549,0.0027366,103420.0,103410.0,0.25835282]
[1733411613786,0.0027366,103420.0,103410.0,0.33515282]
[1733411615094,0.00249297,103420.0,103410.0,0.35815282]
[1733411615547,0.00249297,103420.0,103410.0,0.25847677]
[1733411616879,0.00249297,103420.0,103410.0,0.35815282]
[1733411618002,0.00149297,103420.0,103410.0,0.34915282]
[1733411618476,0.00249297,103420.0,103410.0,0.35515282]
[1733411618689,0.00249297,103420.0,103410.0,0.34415282]
[1733411618952,0.00349297,103420.0,103410.0,0.35515282]
[1733411619160,0.00349297,103420.0,103410.0,0.25547677]
[1733411619367,0.00349297,103420.0,103410.0,0.40347677]
[1733411619800,0.00349297,103420.0,103410.0,0.40847677]
[1733411620459,0.00349297,103420.0,103410.0,0.50815282]
[1733411622941,0.001736,103450.0,103440.0,0.327874]
[1733411623168,0.001736,103450.0,103440.0,0.47495005]
[1733411623414,0.001736,103450.0,103440.0,0.63632879]
[1733411623865,0.001736,103450.0,103440.0,0.47495005]
[1733411624897,0.001736,103450.0,103440.0,0.48395005]
[1733411625101,0.001736,103450.0,103440.0,0.48595005]
[1733411625523,0.001736,103450.0,103440.0,0.48395005]
[1733411625956,0.001736,103450.0,103440.0,0.48795005]
[1733411626169,0.001736,103450.0,103440.0,0.64932879]
[1733411629007,0.001736,103450.0,103440.0,0.81070753]
[1733411629008,1e-06,103450.0,103440.0,0.81070753]
[1733411629237,0.301736,103480.0,103470.0,0.184911]
[1733411629434,0.301736,103480.0,103470.0,0.28555331]
[1733411629650,0.301736,103480.0,103470.0,0.20598705]
[1733411629883,0.301736,103480.0,103470.0,0.106311]
[1733411630084,0.301736,103480.0,103470.0,0.10727732]
[1733411630522,0.30191136,103480.0,103470.0,0.10727732]
[1733411630758,0.30191136,103480.0,103470.0,0.10727728]
[1733411631214,0.30191136,103480.0,103470.0,0.106311]
[1733411631428,0.30191136,103480.0,103470.0,0.108311]
[1733411631635,0.30191136,103480.0,103470.0,0.117311]
[1733411631853,0.30191136,103480.0,103470.0,0.115311]
[1733411632055,0.30191136,103480.0,103470.0,0.11627728]
[1733411632264,0.30191136,103480.0,103470.0,0.12027728]
[1733411632470,0.30191136,103480.0,103470.0,0.50563207]
[1733411632691,0.30191136,103480.0,103470.0,0.50466579]
[1733411633538,0.22381136,103480.0,103470.0,0.66604453]
[1733411633779,0.10351855,103480.0,103470.0,0.50466579]
[1733411633988,0.10351855,103480.0,103470.0,0.69708146]
[1733411634194,0.10351855,103480.0,103470.0,0.92670272]
[1733411634423,0.0017364,103500.0,103480.0,0.212588]
[1733411634636,0.00232048,103500.0,103490.0,0.36831066]
[1733411634859,0.00232048,103500.0,103490.0,0.36734479]
[1733411635083,0.00232048,103500.0,103490.0,0.47579641]
[1733411635704,0.00232048,103500.0,103490.0,0.52289641]
[1733411635913,0.001735,103510.0,103500.0,0.03450763]
[1733411636158,0.001735,103510.0,103500.0,0.39314611]
[1733411636374,0.001735,103510.0,103500.0,0.39218042]
[1733411637649,0.001735,103510.0,103500.0,0.64300004]
[1733411637855,0.001735,103510.0,103500.0,0.39300004]
[1733411638085,0.001735,103510.0,103500.0,0.64300004]
[1733411638311,0.001735,103510.0,103500.0,0.73470004]
[1733411638722,0.001735,103510.0,103500.0,0.74370004]
[1733411639167,0.001735,103510.0,103500.0,0.54250004]
[1733411642106,0.001735,103510.0,103500.0,0.21429405]
[1733411644665,0.001735,103510.0,103500.0,0.37567279]
[1733411644878,0.001735,103510.0,103500.0,0.50457279]
[1733411646203,1e-06,103510.0,103500.0,0.50457279]
[1733411646411,0.0017364,103530.0,103510.0,0.193205]
[1733411646633,0.0017364,103540.0,103530.0,0.09659]
[1733411646864,0.0017364,103540.0,103530.0,0.39429839]
[1733411647735,0.00191158,103540.0,103530.0,0.40329839]
[1733411647937,0.00191158,103540.0,103530.0,0.20526605]
[1733411648381,0.00191158,103540.0,103530.0,0.40329839]
[1733411648589,0.00191158,103540.0,103530.0,0.41229839]
[1733411650789,0.00191158,103540.0,103530.0,0.36664479]
[1733411650990,0.00191158,103540.0,103530.0,0.39429839]
[1733411651197,0.00191158,103540.0,103530.0,0.20526605]
[1733411651407,0.00191158,103540.0,103530.0,0.21426605]
[1733411654596,0.00191158,103540.0,103530.0,0.25134691]
[1733411654812,0.00191158,103540.0,103530.0,0.21426605]
[1733411655016,0.00191158,103540.0,103530.0,0.25134691]
[1733411657157,0.00191158,103540.0,103530.0,0.21426605]
[1733411657431,0.00191158,103540.0,103530.0,0.25134691]
[1733411657855,0.00191158,103540.0,103530.0,0.21426605]
[1733411658269,0.00191158,103540.0,103530.0,0.25134691]
[1733411659130,0.00191158,103540.0,103530.0,0.21426605]
[1733411659764,0.00191158,103540.0,103530.0,0.23726605]
[1733411659970,0.00191158,103540.0,103530.0,0.27434691]
[1733411660373,0.00191158,103540.0,103530.0,0.23726605]
[1733411661486,0.00191158,103540.0,103530.0,0.27434691]
[1733411661707,0.00191158,103540.0,103530.0,0.23726605]
[1733411664377,0.00191158,103540.0,103530.0,0.38726605]
[1733411664585,0.00191158,103540.0,103530.0,0.36426605]
[1733411665221,0.10191158,103540.0,103530.0,0.168]
[1733411665467,0.10191158,103540.0,103530.0,0.25559]
[1733411665691,0.00191158,103540.0,103530.0,0.159]
[1733411665905,0.10191158,103540.0,103530.0,0.26621473]
[1733411666116,0.22581158,103540.0,103530.0,0.168]
[1733411666333,0.1,103540.0,103530.0,0.26767605]
[1733411666566,0.0017356,103550.0,103540.0,0.256239]
[1733411666774,0.0017356,103550.0,103540.0,0.45591505]
[1733411667623,0.0017356,103550.0,103540.0,0.47891505]
[1733411667829,0.1017356,103550.0,103540.0,0.37891505]
[1733411668301,0.1017356,103550.0,103540.0,0.38791505]
[1733411668708,0.1017356,103550.0,103540.0,0.39491505]
[1733411669150,0.10112091,103550.0,103540.0,0.39491505]
[1733411671057,0.00112091,103550.0,103540.0,0.28867605]
[1733411671493,0.00112091,103550.0,103540.0,0.39491505]
[1733411671706,0.10112091,103550.0,103540.0,0.39491505]
[1733411672150,0.00112091,103550.0,103540.0,0.39491505]
[1733411672559,0.00112091,103550.0,103540.0,0.28867605]
[1733411672863,0.00112091,103550.0,103540.0,0.39491505]
[1733411672955,0.00112091,103550.0,103540.0,0.189]
[1733411673172,0.00112091,103550.0,103540.0,0.18996563]
[1733411673383,0.00112091,103550.0,103540.0,0.189]
[1733411673605,0.00112091,103550.0,103540.0,0.18996563]
[1733411674067,0.00112091,103550.0,103540.0,0.29620463]
[1733411674272,0.10112091,103550.0,103540.0,0.39491505]
[1733411674506,0.00112091,103550.0,103540.0,0.39491505]
[1733411674724,0.10112091,103550.0,103540.0,0.39491505]
[1733411676954,0.10112091,103550.0,103540.0,0.28867605]
[1733411676955,0.00112091,103550.0,103540.0,0.28867605]
[1733411677837,0.00112091,103550.0,103540.0,0.189]
[1733411678509,0.19426391,103550.0,103540.0,0.189]
[1733411678713,0.27536391,103550.0,103540.0,0.1898665]
[1733411678923,0.1811,103550.0,103540.0,0.1898665]
[1733411679127,0.374243,103550.0,103540.0,0.1898665]
[1733411679867,0.42171905,103550.0,103540.0,0.1898665]
[1733411680075,0.42171905,103550.0,103540.0,0.1738665]
[1733411680282,0.42171905,103550.0,103540.0,0.1758665]
[1733411680749,0.0017354,103560.0,103540.0,0.37108134]
[1733411680960,0.0017354,103560.0,103540.0,0.1738665]
[1733411680961,0.1841354,103560.0,103540.0,0.1738665]
[1733411681166,0.2302354,103560.0,103540.0,0.1738665]
[1733411681372,0.1,103540.0,103530.0,0.12866254]
[1733411681579,0.1302354,103560.0,103540.0,0.096579]
[1733411681787,0.1302354,103560.0,103540.0,0.199155]
[1733411681993,0.1312354,103560.0,103540.0,0.006]
[1733411682218,0.1312354,103560.0,103540.0,0.096579]
[1733411682640,0.2312354,103560.0,103540.0,0.002]
[1733411682843,0.2312354,103560.0,103530.0,0.32492359]
[1733411683049,0.2312354,103560.0,103530.0,0.51809259]
[1733411683269,0.2302354,103560.0,103540.0,0.006]
[1733411683480,0.6164884,103560.0,103540.0,0.002]
[1733411683893,0.8096244,103560.0,103540.0,0.004]
[1733411684099,0.6164884,103560.0,103540.0,0.002]
[1733411684307,0.2302354,103560.0,103540.0,0.002]
[1733411684738,0.4233594,103560.0,103540.0,0.002]
[1733411684951,0.6164974,103560.0,103540.0,0.002]
[1733411685173,0.6164974,103560.0,103530.0,0.12866254]
[1733411685174,0.193151,103550.0,103530.0,0.12866254]
[1733411685387,0.193151,103550.0,103530.0,0.13066254]
[1733411685810,0.193151,103550.0,103530.0,0.12962825]
[1733411686018,0.71618345,103560.0,103540.0,0.002]
[1733411686227,0.193143,103550.0,103540.0,0.002]
[1733411686445,0.293143,103550.0,103530.0,0.12866254]
[1733411686974,0.293143,103550.0,103530.0,0.13066254]
[1733411687191,0.268562,103540.0,103530.0,0.12866254]
[1733411687871,0.0017354,103560.0,103530.0,0.12866254]
[1733411688112,0.0017354,103560.0,103550.0,0.096571]
[1733411688358,0.0017354,103560.0,103550.0,0.19624705]
[1733411688598,0.0017354,103560.0,103530.0,0.32524654]
[1733411688832,0.0017354,103560.0,103540.0,0.19625605]
[1733411689328,0.0017354,103560.0,103540.0,0.09967605]
[1733411689572,0.0017354,103560.0,103540.0,0.19722162]
[1733411689816,0.0017354,103560.0,103540.0,0.29379662]
[1733411690040,0.0017354,103560.0,103540.0,0.29379162]
[1733411690268,0.0017354,103560.0,103540.0,0.29465812]
[1733411690487,0.0017354,103560.0,103550.0,0.002]
[1733411690984,0.0017354,103560.0,103540.0,0.29969255]
[1733411691493,0.0017354,103560.0,103540.0,0.20511755]
[1733411691926,0.0017354,103560.0,103540.0,0.20311755]
[1733411692157,0.0017354,103560.0,103550.0,0.002]
[1733411692805,0.0017354,103560.0,103550.0,0.00896557]
[1733411693277,0.0017354,103560.0,103550.0,0.008]
[1733411693507,0.0017354,103560.0,103550.0,0.006]
[1733411694700,0.0017354,103560.0,103550.0,0.008]
[1733411696797,0.0017354,103560.0,103550.0,0.10553655]
[1733411697226,0.0017354,103560.0,103550.0,0.008]
[1733411698764,0.0017354,103560.0,103550.0,0.10553657]
[1733411702713,0.0017354,103560.0,103550.0,0.00896557]
[1733411702939,0.0017354,103560.0,103550.0,0.10553657]
[1733411703159,0.0017354,103560.0,103550.0,0.00896557]
[1733411703363,0.0017354,103560.0,103550.0,0.008]
[1733411704071,0.1948594,103560.0,103550.0,0.008]
[1733411704943,0.61655467,103560.0,103550.0,0.008]
[1733411705170,0.375343,103550.0,103540.0,0.1008665]
[1733411705410,0.42161905,103550.0,103540.0,0.1008665]
[1733411706090,0.52161905,103550.0,103540.0,0.1008665]
[1733411706765,0.42161905,103550.0,103540.0,0.1008665]
[1733411707187,0.321943,103550.0,103540.0,0.1008665]
[1733411707604,0.1288,103550.0,103540.0,0.1008665]
[1733411707835,0.49929839,103550.0,103540.0,0.1008665]
[1733411708296,0.1,103520.0,103500.0,0.0008669]
[1733411709831,0.00017496,103520.0,103500.0,0.10444199]
[1733411710065,0.19337596,103520.0,103500.0,0.0068669]
[1733411710758,0.19337596,103520.0,103500.0,0.0018329]
[1733411710967,0.38658596,103520.0,103500.0,0.0018329]
[1733411711176,0.57980096,103520.0,103500.0,0.00183291]
[1733411711422,0.193218,103510.0,103500.0,0.0008669]
[1733411712297,0.194218,103510.0,103500.0,0.0008669]
[1733411712750,0.293218,103510.0,103500.0,0.0008669]
[1733411712968,0.39289405,103510.0,103500.0,0.0028669]
[1733411713684,0.39289405,103510.0,103500.0,0.0008669]
[1733411713939,0.29289405,103510.0,103500.0,0.0008669]
[1733411714164,0.39389405,103510.0,103500.0,0.0008669]
[1733411714404,0.29589405,103510.0,103500.0,0.0008669]
[1733411714872,0.29389405,103510.0,103500.0,0.0008669]
[1733411715105,0.29589405,103510.0,103500.0,0.0008669]
[1733411715347,0.29489405,103510.0,103500.0,0.0008669]
[1733411715802,0.29689405,103510.0,103500.0,0.0008669]
[1733411716761,0.29489405,103510.0,103500.0,0.0028669]
[1733411716764,0.47324205,103510.0,103500.0,0.0028669]
[1733411717173,0.29289405,103510.0,103500.0,0.0008669]
[1733411717410,0.39289405,103510.0,103500.0,0.0008669]
[1733411717641,0.52339405,103510.0,103500.0,0.0008669]
[1733411717890,0.373736,103500.0,103490.0,0.15]
[1733411718123,0.68066664,103500.0,103490.0,0.15]
[1733411718357,0.77858586,103500.0,103490.0,0.15]
[1733411719336,0.71763127,103500.0,103490.0,0.15]
[1733411719811,0.71963127,103500.0,103490.0,0.15]
[1733411720270,0.7516291,103500.0,103490.0,0.15]
[1733411720526,0.65370988,103500.0,103490.0,0.15]
[1733411720767,0.60320988,103500.0,103490.0,0.15]
[1733411720976,0.42271205,103500.0,103490.0,0.15]
[1733411721225,0.52271205,103500.0,103490.0,0.15]
[1733411721907,0.386529,103490.0,103460.0,0.193303]
[1733411722150,0.5798,103490.0,103460.0,0.2939454]
[1733411722354,0.193261,103490.0,103470.0,0.0773]
[1733411722576,0.193261,103490.0,103470.0,0.17491135]
[1733411723519,0.39292205,103500.0,103470.0,0.27154835]
[1733411723745,0.293245,103500.0,103470.0,0.17490735]
[1733411723988,0.002,103500.0,103480.0,0.096636]
[1733411724228,0.002,103500.0,103490.0,0.096627]
[1733411724456,0.366226,103510.0,103490.0,0.19726325]
[1733411724457,0.173,103510.0,103490.0,0.19726325]
[1733411724697,0.366218,103510.0,103480.0,0.096631]
[1733411724950,0.002,103500.0,103480.0,0.19630705]
[1733411725176,0.002,103500.0,103480.0,0.29293705]
[1733411725412,0.366218,103510.0,103490.0,0.09759316]
[1733411725913,0.173,103510.0,103490.0,0.10058816]
[1733411726143,0.173,103510.0,103490.0,0.19721108]
[1733411726620,0.173,103510.0,103490.0,0.29383408]
[1733411726848,0.173,103510.0,103490.0,0.19721108]
[1733411727068,0.173,103510.0,103500.0,0.096618]
[1733411727275,0.173,103510.0,103490.0,0.20129805]
[1733411727508,0.193236,103500.0,103490.0,0.002]
[1733411727741,0.659459,103510.0,103490.0,0.002]
[1733411727978,0.659458,103510.0,103490.0,0.002]
[1733411728230,0.193236,103500.0,103490.0,0.002]
[1733411728456,0.193236,103500.0,103470.0,0.1748065]
[1733411728686,0.85236305,103510.0,103490.0,0.005]
[1733411728906,0.85236305,103510.0,103490.0,0.003]
[1733411729132,0.65913205,103510.0,103490.0,0.003]
[1733411729352,0.386484,103500.0,103470.0,0.17784255]
[1733411729648,0.193263,103490.0,103470.0,0.0008665]
[1733411730070,0.77941305,103500.0,103470.0,0.0008665]
[1733411730304,0.77941305,103500.0,103470.0,0.00183283]
[1733411730746,0.193256,103490.0,103470.0,0.00183283]
[1733411730974,0.193256,103490.0,103470.0,0.0008665]
[1733411732299,0.56413866,103490.0,103470.0,0.0008665]
[1733411732533,0.193274,103480.0,103470.0,0.0098665]
[1733411733465,0.47213205,103490.0,103470.0,0.0038665]
[1733411733682,0.193274,103480.0,103470.0,0.0058665]
[1733411733903,0.193274,103480.0,103470.0,0.00145058]
[1733411734118,0.193274,103480.0,103470.0,0.00445058]
[1733411734796,0.193274,103480.0,103470.0,0.00145058]
[1733411735234,0.193274,103480.0,103470.0,0.00345058]
[1733411736175,0.42551735,103480.0,103470.0,0.00345058]
[1733411736624,0.45632285,103480.0,103470.0,0.00345058]
[1733411737358,0.45832285,103480.0,103470.0,0.00145058]
[1733411737565,0.42751735,103480.0,103470.0,0.00145058]
[1733411737781,0.42551735,103480.0,103470.0,0.00145058]
[1733411738206,0.42751735,103480.0,103470.0,0.00145058]
[1733411738668,0.42951735,103480.0,103470.0,0.00145058]
[1733411739121,0.43151735,103480.0,103470.0,0.00145058]
[1733411741800,0.46232285,103480.0,103470.0,0.00145058]
[1733411742009,0.37645555,103480.0,103470.0,0.00145058]
[1733411742466,0.44565005,103480.0,103470.0,0.00145058]
[1733411742719,0.52455005,103480.0,103470.0,0.00145058]
[1733411742948,0.55535555,103480.0,103470.0,0.00145058]
[1733411743191,0.52455005,103480.0,103470.0,0.00145058]
[1733411743671,0.51855005,103480.0,103470.0,0.00145058]
[1733411743900,0.42255005,103480.0,103470.0,0.00145058]
[1733411744333,0.42055005,103480.0,103470.0,0.00145058]
[1733411744757,0.52255005,103480.0,103470.0,0.00145058]
[1733411745224,0.42055005,103480.0,103470.0,0.00145058]
[1733411745446,0.52046927,103480.0,103470.0,0.00145058]
[1733411745664,0.51846927,103480.0,103470.0,0.00145058]
[1733411746123,0.51946927,103480.0,103470.0,0.00145058]
[1733411746351,0.51746927,103480.0,103470.0,0.00145058]
[1733411746575,0.42055005,103480.0,103470.0,0.00145058]
[1733411747873,0.52055005,103480.0,103470.0,0.00145058]
[1733411751863,0.386601,103470.0,103440.0,0.00096661]
[1733411752080,0.193319,103460.0,103440.0,0.00114197]
[1733411752289,0.38664,103460.0,103440.0,0.00017536]
[1733411752498,0.579961,103460.0,103440.0,0.00017536]
[1733411752950,0.39300605,103450.0,103440.0,0.00017536]
[1733411753385,0.39300605,103450.0,103440.0,0.00317536]
[1733411753593,0.39300605,103450.0,103440.0,0.00117536]
[1733411754017,0.39300605,103450.0,103440.0,0.00617536]
[1733411754225,0.39400605,103450.0,103440.0,0.00017536]
[1733411755283,0.19433,103450.0,103440.0,0.00017536]
[1733411755721,0.19533,103450.0,103440.0,0.00017536]
[1733411756134,0.19433,103450.0,103440.0,0.00017536]
[1733411756344,0.19633,103450.0,103440.0,0.00017536]
[1733411756549,0.003,103450.0,103440.0,0.00017536]
[1733411756987,0.003,103450.0,103440.0,0.09684936]
[1733411757206,0.003,103450.0,103440.0,0.00017536]
[1733411757614,0.343301,103470.0,103440.0,0.19651841]
[1733411757835,0.001,103450.0,103440.0,0.29415302]
[1733411758055,0.001,103450.0,103440.0,0.29318641]
[1733411758484,0.001,103450.0,103440.0,0.00017536]
[1733411758699,0.19433,103450.0,103440.0,0.00017536]
[1733411759160,0.19333,103450.0,103440.0,0.00017536]
[1733411760036,0.19333,103450.0,103440.0,0.00204256]
[1733411760236,0.19433,103450.0,103440.0,0.00204256]
[1733411760713,0.19333,103450.0,103440.0,0.00204256]
[1733411761180,0.4485007,103450.0,103440.0,0.00404256]
[1733411761392,0.39300605,103450.0,103440.0,0.00404256]
[1733411761869,0.39300605,103450.0,103440.0,0.00204256]
[1733411762496,0.19333,103450.0,103440.0,0.00204256]
[1733411763116,0.19333,103450.0,103440.0,0.00104256]
[1733411763321,0.002,103450.0,103440.0,0.00104256]
[1733411763564,0.636602,103470.0,103440.0,0.09771656]
[1733411763762,0.386637,103460.0,103440.0,0.00104256]
[1733411763972,0.19333,103450.0,103440.0,0.00304256]
[1733411764180,0.37430605,103450.0,103440.0,0.00304256]
[1733411764426,0.40606738,103450.0,103440.0,0.00304256]
[1733411764630,0.40606738,103450.0,103440.0,0.00104256]
[1733411764885,0.6539866,103450.0,103440.0,0.00104256]
[1733411765613,0.6769866,103450.0,103440.0,0.00104256]
[1733411765845,0.69865936,103450.0,103440.0,0.00104256]
[1733411766293,0.56997881,103450.0,103440.0,0.00204256]
[1733411766741,0.57197881,103450.0,103440.0,0.00104256]
[1733411766985,0.57297881,103450.0,103440.0,0.00104256]
[1733411767639,0.193386,103420.0,103400.0,0.1558677]
[1733411767848,0.386783,103420.0,103400.0,0.1558677]
[1733411768053,0.193404,103410.0,103400.0,0.1558677]
[1733411768561,0.580184,103420.0,103400.0,0.1558677]
[1733411768755,0.38678,103420.0,103400.0,0.15683473]
[1733411768957,0.193386,103420.0,103400.0,0.1558677]
[1733411769169,0.386782,103420.0,103400.0,0.1558677]
[1733411769387,0.536782,103420.0,103400.0,0.15904247]
[1733411769593,0.536782,103420.0,103400.0,0.16764949]
[1733411770020,0.536782,103420.0,103400.0,0.17828633]
[1733411770430,0.536782,103420.0,103400.0,0.18428633]
[1733411770655,0.15,103420.0,103400.0,0.2819603]
[1733411770871,0.15,103420.0,103410.0,0.272845]
[1733411771096,0.15,103420.0,103410.0,0.27187805]
[1733411771559,0.15,103420.0,103410.0,0.41697805]
[1733411771766,0.173,103450.0,103430.0,0.193354]
[1733411772004,0.173,103450.0,103430.0,0.19432067]
[1733411772206,0.173,103450.0,103430.0,0.39067472]
[1733411772423,0.174736,103450.0,103430.0,0.29399572]
[1733411772647,0.174736,103450.0,103430.0,0.39067472]
[1733411772855,0.174736,103450.0,103430.0,0.29399572]
[1733411773320,0.174736,103450.0,103430.0,0.29499572]
[1733411773554,0.174736,103450.0,103440.0,0.14394063]
[1733411773776,0.174736,103450.0,103440.0,0.142974]
[1733411774007,0.174736,103450.0,103440.0,0.0463]
[1733411774900,0.1749109,103450.0,103440.0,0.0463]
[1733411775104,0.1749109,103450.0,103440.0,0.0473]
[1733411776624,0.1749109,103450.0,103440.0,0.32125005]
[1733411777098,0.1749109,103450.0,103440.0,0.33125005]
[1733411777324,0.1749109,103450.0,103440.0,0.23357605]
[1733411777545,0.1749109,103450.0,103440.0,0.23557605]
[1733411778005,0.1749109,103450.0,103440.0,0.23357605]
[1733411778212,0.1749109,103450.0,103440.0,0.24257605]
[1733411778670,0.21173319,103450.0,103440.0,0.019]
[1733411778879,0.50473924,103450.0,103440.0,0.019]
[1733411779095,0.3682409,103450.0,103440.0,0.019]
[1733411779328,0.46791695,103450.0,103440.0,0.019]
[1733411779536,0.46791695,103450.0,103440.0,0.015]
[1733411780005,0.46791695,103450.0,103440.0,0.01]
[1733411780431,0.46991695,103450.0,103440.0,0.01]
[1733411782905,0.0269109,103450.0,103440.0,0.106674]
[1733411783159,0.0269109,103450.0,103440.0,0.33275005]
[1733411784021,0.0249109,103450.0,103440.0,0.33275005]
[1733411784230,0.0249109,103450.0,103440.0,0.33575005]
[1733411784445,0.0249109,103450.0,103440.0,0.34475005]
[1733411785325,0.0249109,103450.0,103440.0,0.44475005]
[1733411785539,0.0249109,103450.0,103440.0,0.44175005]
[1733411785965,0.0249109,103450.0,103440.0,0.34675005]
[1733411787485,0.0249109,103450.0,103440.0,0.3564109]
[1733411787689,0.0249109,103450.0,103440.0,0.4564109]
[1733411788270,0.0249109,103450.0,103440.0,0.3564109]